fUST/lending_fUST_20251220
["ID","MTS","AMOUNT","RATE_DAILY","PERIOD"]
[399285005,1766243415009,253.29590255,9.666e-05,2]
[399285006,1766243415404,596.75,9.863e-05,2]
[399285007,1766243423063,500.0,0.00013273,2]
[399285008,1766243423318,387.47394538,0.00013273,2]
[399285044,1766243432078,-1420.2,0.0001354,2]
[399285084,1766243438250,-391.23116103,0.0001354,2]
[399285085,1766243438260,-613.0,0.0001354,2]
[399285086,1766243438271,-150.0,0.00013609,2]
[399285087,1766243438281,-300.0,0.00013698,2]
[399285088,1766243438291,-1200.0,0.00013698,2]
[399285089,1766243438300,-500.49798192,0.00013699,2]
[399285090,1766243438309,-500.0,0.00013699,2]
[399285091,1766243438319,-500.0,0.00013699,2]
[399285092,1766243438328,-600.90062236,0.00013699,2]
[399285093,1766243438337,-500.0,0.00013699,2]
[399285094,1766243438346,-500.0,0.00013699,2]
[399285095,1766243438356,-500.0,0.00013699,2]
[399285096,1766243438367,-500.0,0.00013699,2]
[399285097,1766243438377,-500.0,0.00013699,2]
[399285098,1766243438386,-339.18536206,0.0001382,2]
[399285099,1766243438396,-500.0,0.0001382,2]
[399285100,1766243438405,-500.0,0.0001382,2]
[399285101,1766243438414,-500.0,0.0001382,2]
[399285102,1766243438423,-500.0,0.0001382,2]
[399285103,1766243438432,-500.0,0.0001382,2]
[399285104,1766243438442,-500.0,0.0001382,2]
[399285105,1766243438451,-500.0,0.0001382,2]
[399285106,1766243438461,-500.0,0.0001382,2]
[399285107,1766243438470,-500.0,0.0001382,2]
[399285108,1766243438480,-425.05045601,0.0001382,2]
[399285109,1766243438489,-500.0,0.0001382,2]
[399285110,1766243438498,-500.0,0.0001382,2]
[399285111,1766243438508,-250.37335406,0.0001382,2]
[399285112,1766243438517,-500.0,0.0001382,2]
[399285113,1766243438527,-500.0,0.0001382,2]
[399285114,1766243438536,-500.0,0.0001382,2]
[399285115,1766243438546,-500.0,0.0001382,2]
[399285116,1766243438555,-500.0,0.0001382,2]
[399285117,1766243438565,-323.35831684,0.0001382,2]
[399285118,1766243438575,-500.0,0.0001382,2]
[399285119,1766243438585,-500.0,0.0001382,2]
[399285120,1766243438595,-500.0,0.0001382,2]
[399285121,1766243438605,-500.0,0.0001382,2]
[399285122,1766243438614,-500.0,0.0001382,2]
[399285123,1766243438623,-500.0,0.0001382,2]
[399285124,1766243438632,-500.0,0.0001382,2]
[399285125,1766243438642,-500.0,0.0001382,2]
[399285126,1766243438651,-500.0,0.0001382,2]
[399285127,1766243438660,-500.0,0.0001382,2]
[399285128,1766243438669,-500.0,0.0001382,2]
[399285129,1766243438679,-500.0,0.0001382,2]
[399285130,1766243438689,-500.0,0.0001382,2]
[399285131,1766243438698,-2523.37652225,0.00013821,2]
[399285132,1766243438707,-1000.0,0.00013821,2]
[399285133,1766243438716,-1000.21638432,0.00013821,2]
[399285134,1766243438726,-1000.0,0.00013821,2]
[399285135,1766243438735,-1000.0,0.00013821,2]
[399285136,1766243438744,-1041.85593365,0.00013821,2]
[399285137,1766243438753,-1000.0,0.00013821,2]
[399285138,1766243438762,-1001.80992109,0.00013821,2]
[399285139,1766243438772,-1000.0,0.00013821,2]
[399285140,1766243438781,-1000.0,0.00013821,2]
[399285141,1766243438790,-500.0,0.00013821,2]
[399285142,1766243438799,-1000.0,0.00013821,2]
[399285143,1766243438808,-500.60108099,0.00013821,2]
[399285144,1766243438817,-500.95679367,0.00013821,2]
[399285145,1766243438827,-1000.0,0.00013821,2]
[399285146,1766243438837,-1000.0,0.00013821,2]
[399285147,1766243438847,-1000.0,0.00013821,2]
[399285148,1766243438856,-1000.0,0.00013821,2]
[399285149,1766243438868,-1000.0,0.00013821,2]
[399285150,1766243438878,-999.13313325,0.00013971,2]
[399285151,1766243438888,-300.0,0.00013972,2]
[399285152,1766243438899,-300.0,0.00013972,2]
[399285153,1766243438909,-300.0,0.00013972,2]
[399285154,1766243438918,-300.0,0.00013972,2]
[399285155,1766243438927,-300.0,0.00013972,2]
[399285156,1766243438939,-300.0,0.00013972,2]
[399285157,1766243438948,-300.0,0.00013972,2]
[399285158,1766243438958,-300.0,0.00013972,2]
[399285159,1766243438967,-300.0,0.00013972,2]
[399285160,1766243438976,-300.0,0.00013972,2]
[399285161,1766243438986,-300.0,0.00013972,2]
[399285162,1766243438995,-300.0,0.00013972,2]
[399285163,1766243439005,-300.0,0.00013972,2]
[399285164,1766243439014,-300.0,0.00013972,2]
[399285165,1766243439024,-300.0,0.00013972,2]
[399285166,1766243439034,-600.0,0.00014095,2]
[399285167,1766243439043,-1000.86079436,0.00014247,2]
[399285168,1766243439053,-916.14601142,0.00014247,2]
[399285169,1766243439063,-431.9189986,0.00014247,2]
[399285170,1766243439072,-1000.0,0.00014247,2]
[399285171,1766243439082,-1000.0,0.00014247,2]
[399285172,1766243439092,-866.34541767,0.00014247,2]
[399285173,1766243439102,-249.13636504,0.00014247,2]
[399285174,1766243439112,-1500.52137794,0.00014368,2]
[399285175,1766243439122,-1500.0,0.00014368,2]
[399285176,1766243439131,-1500.0,0.00014368,2]
[399285177,1766243439142,-559.98494161,0.00014368,2]
[399285178,1766243439151,-1500.77161856,0.00014368,2]
[399285179,1766243439162,-1500.0,0.00014368,2]
[399285180,1766243439172,-1500.0,0.00014368,2]
[399285181,1766243439182,-1500.0,0.00014368,2]
[399285182,1766243439192,-1503.26642219,0.00014368,2]
[399285183,1766243439203,-1500.0,0.00014368,2]
[399285184,1766243439212,-1500.0,0.00014368,2]
[399285185,1766243439223,-1500.0,0.00014795,2]
[399285186,1766243439233,-1500.0,0.00014795,2]
[399285187,1766243439243,-2000.0,0.00014916,2]
[399285188,1766243439253,-2000.0,0.00014916,2]
[399285189,1766243439262,-2000.0,0.00014916,2]
[399285190,1766243439272,-2000.0,0.00014916,2]
[399285191,1766243439282,-1500.0,0.00014916,2]
[399285192,1766243439292,-2000.0,0.00014916,2]
[399285193,1766243439302,-2000.0,0.00014916,2]
[399285194,1766243439312,-197.41928478,0.000153,2]
[399285195,1766243439321,-333.33333333,0.000153,2]
[399285196,1766243439331,-159.8176846,0.00015329,2]
[399285197,1766243439340,-245.97863715,0.00015341,2]
[399285198,1766243439350,-500.0,0.00015341,2]
[399285199,1766243439359,-651.05095704,0.00015341,2]
[399285200,1766243439369,-500.0,0.00015341,2]
[399285201,1766243439379,-500.0,0.00015341,2]
[399285202,1766243439388,-490.12616953,0.00015341,2]
[399285203,1766243439398,-160.085,0.00015342,2]
[399285204,1766243439407,-2000.0,0.00015342,2]
[399285205,1766243439417,-2000.0,0.00015342,2]
[399285206,1766243439427,-2500.0,0.00015464,2]
[399285207,1766243439437,-2500.0,0.00015464,2]
[399285208,1766243439446,-2500.0,0.00015464,2]
[399285209,1766243439456,-2500.0,0.00015464,2]
[399285210,1766243439465,-2500.0,0.00015464,2]
[399285211,1766243439474,-2500.0,0.00015464,2]
[399285212,1766243439483,-720.0,0.00015504,2]
[399285213,1766243439493,-177.0,0.00015609,2]
[399285214,1766243439503,-2500.0,0.0001589,2]
[399285215,1766243439512,-247.8101397,0.0001589,2]
[399285216,1766243439523,-360.84858633,0.00015892,2]
[399285217,1766243439532,-1031.49438241,0.00016012,2]
[399285218,1766243439542,-1998.27918386,0.00016012,2]
[399285219,1766243439552,-3000.0,0.00016012,2]
[399285220,1766243439562,-2594.06229258,0.00016012,2]
[399285221,1766243439573,-3000.0,0.00016012,2]
[399285222,1766243439582,-3000.0,0.00016012,2]
[399285223,1766243439592,-779.62,0.00016425,2]
[399285224,1766243439602,-500.0,0.00016438,2]
[399285225,1766243439612,-431.5,0.00016438,2]
[399285226,1766243439621,-1262.33874449,0.00016438,2]
[399285227,1766243439632,-360.84858633,0.00016523,2]
[399285228,1766243439643,-619.54300839,0.00016525,2]
[399285229,1766243439653,-500.0,0.00016525,2]
[399285230,1766243439663,-500.0,0.00016525,2]
[399285231,1766243439673,-500.0,0.00016525,2]
[399285232,1766243439683,-500.0,0.00016525,2]
[399285233,1766243439693,-500.0,0.00016525,2]
[399285234,1766243439702,-500.0,0.00016525,2]
[399285235,1766243439711,-500.0,0.00016525,2]
[399285236,1766243439720,-500.0,0.00016525,2]
[399285237,1766243439729,-500.0,0.00016525,2]
[399285238,1766243439739,-544.61852792,0.00016525,2]
[399285239,1766243439748,-500.0,0.00016525,2]
[399285240,1766243439757,-500.0,0.00016525,2]
[399285241,1766243439768,-500.0,0.00016525,2]
[399285242,1766243439778,-500.0,0.00016525,2]
[399285243,1766243439788,-500.0,0.00016525,2]
[399285244,1766243439798,-500.0,0.00016525,2]
[399285245,1766243439807,-3500.0,0.0001656,2]
[399285246,1766243439818,-2006.84043688,0.0001656,2]
[399285247,1766243439829,-3500.0,0.0001656,2]
[399285248,1766243439839,-864.0,0.00017055,2]
[399285249,1766243439850,-434.22198915,0.00017108,2]
[399285250,1766243439861,-1077.66346119,0.00017108,2]
[399285251,1766243439871,-360.84858633,0.00017153,2]
[399285252,1766243439881,-999.0,0.00017228,2]
[399285253,1766243439891,-204.0,0.00017609,2]
[399285254,1766243439902,-226.35364792,0.00017653,2]
[399285255,1766243439911,-395.33088811,0.00017722,2]
[399285256,1766243439921,-360.84858633,0.00017784,2]
[399285257,1766243439930,-965.2770871,0.0001822,2]
[399285258,1766243439941,-361.20943492,0.00018414,2]
[399285260,1766243439951,-1000.0,0.0001876,2]
[399285262,1766243439961,-1746.31774976,0.00019079,2]
[399285263,1766243439970,-652.4,0.00019114,3]
[399285264,1766243439980,-30704.9387472,0.00019224,2]
[399285265,1766243439989,-711.5955986,0.00019396,2]
[399285266,1766243439999,-231.0,0.00019609,2]
[399285267,1766243440008,-335.054585,0.00020187,2]
[399285268,1766243440017,-201.3,0.000205,2]
[399285269,1766243440027,-223.67,0.000205,2]
[399285270,1766243440036,-326.02,0.000205,2]
[399285271,1766243440047,-1000.0,0.00020636,2]
[399285272,1766243440058,-244.0,0.00020636,2]
[399285273,1766243440067,-345.0,0.00021245,2]
[399285275,1766243440077,-345.0,0.00021245,2]
[399285277,1766243440086,-345.0,0.00021245,2]
[399285278,1766243440095,-345.0,0.00021245,2]
[399285280,1766243440105,-345.0,0.00021245,2]
[399285282,1766243440114,-345.0,0.00021245,2]
[399285284,1766243440124,-345.0,0.00021245,2]
[399285286,1766243440134,-345.0,0.00021245,2]
[399285288,1766243440143,-345.0,0.00021245,2]
[399285289,1766243440152,-345.0,0.00021245,2]
[399285291,1766243440162,-345.0,0.00021245,2]
[399285293,1766243440171,-345.0,0.00021245,2]
[399285295,1766243440181,-345.0,0.00021245,2]
[399285297,1766243440191,-345.0,0.00021245,2]
[399285298,1766243440201,-345.0,0.00021245,2]
[399285300,1766243440210,-345.0,0.00021245,2]
[399285301,1766243440220,-345.0,0.00021245,2]
[399285302,1766243440230,-345.0,0.00021245,2]
[399285304,1766243440240,-345.0,0.00021245,2]
[399285305,1766243440249,-345.0,0.00021245,2]
[399285307,1766243440259,-345.0,0.00021245,2]
[399285308,1766243440269,-345.0,0.00021245,2]
[399285310,1766243440279,-345.0,0.00021245,2]
[399285312,1766243440289,-345.0,0.00021245,2]
[399285314,1766243440299,-345.0,0.00021245,2]
[399285316,1766243440310,-345.0,0.00021245,2]
[399285318,1766243440320,-345.0,0.00021245,2]
[399285319,1766243440330,-345.0,0.00021245,2]
[399285321,1766243440339,-345.0,0.00021245,2]
[399285322,1766243440349,-345.0,0.00021245,2]
[399285323,1766243440359,-345.0,0.00021245,2]
[399285325,1766243440368,-345.0,0.00021245,2]
[399285327,1766243440378,-345.0,0.00021245,2]
[399285328,1766243440387,-345.0,0.00021245,2]
[399285330,1766243440396,-345.0,0.00021245,2]
[399285332,1766243440406,-345.0,0.00021245,2]
[399285334,1766243440415,-345.0,0.00021245,2]
[399285336,1766243440424,-345.0,0.00021245,2]
[399285338,1766243440434,-345.0,0.00021245,2]
[399285340,1766243440443,-345.0,0.00021245,2]
[399285342,1766243440453,-472.5649065,0.00021245,2]
[399285343,1766243440462,-332.6194185,0.00021567,2]
[399285345,1766243440471,-1041.66666667,0.00021626,2]
[399285347,1766243440482,-172.510965,0.00021918,2]
[399285349,1766243440491,-159.11,0.000222,7]
[399285351,1766243440501,-1000.0,0.000227,10]
[399285353,1766243440511,-492.0,0.000227,10]
[399285355,1766243440520,-520.3856754,0.00022808,3]
[399285357,1766243440529,-400.0,0.00023,120]
[399285359,1766243440538,-500.0,0.0002352,2]
[399285360,1766243440548,-500.0,0.0002352,2]
[399285362,1766243440557,-500.0,0.0002352,10]
[399285364,1766243440567,-500.0,0.0002352,2]
[399285366,1766243440576,-500.0,0.0002352,10]
[399285369,1766243440586,-500.0,0.0002352,2]
[399285371,1766243440595,-500.0,0.0002352,2]
[399285373,1766243440604,-500.0,0.0002352,2]
[399285375,1766243440614,-500.0,0.0002352,2]
[399285376,1766243440624,-500.0,0.0002352,10]
[399285378,1766243440633,-500.0,0.0002352,2]
[399285410,1766243440971,-500.0,0.0002352,10]
[399285413,1766243440993,-500.0,0.0002352,2]
[399285415,1766243441003,-333.98774074,0.0002352,2]
[399285417,1766243441012,-500.0,0.00023522,120]
[399285419,1766243441022,-500.0,0.00023522,120]
[399285421,1766243441032,-390.52530395,0.00024006,2]
[399285422,1766243441042,-172.78,0.000246,14]
[399285424,1766243441051,-21940.65,0.000246,2]
[399285426,1766243441061,-100818.97962354,0.0002465,2]
[399285428,1766243441071,-356.0,0.00024725,10]
[399285430,1766243441080,-211.18406866,0.000248,2]
[399285432,1766243441090,-18803.626618,0.000249,2]
[399285434,1766243441100,-1000.0,0.0002497,10]
[399285436,1766243441110,-791.0,0.0002497,10]
[399285438,1766243441121,-300.0,0.00025,120]
[399285439,1766243441130,-476.83904742,0.00025877,5]
[399285441,1766243441139,-250.0,0.000263,10]
[399285443,1766243441148,-476.83904742,0.00026337,6]
[399285445,1766243441158,-250.0,0.000264,10]
[399285447,1766243441168,-250.0,0.000265,10]
[399285449,1766243441177,-250.0,0.000266,10]
[399285451,1766243441188,-335.054585,0.00026676,2]
[399285453,1766243441198,-250.0,0.000267,10]
[399285455,1766243441208,-476.83904742,0.00026797,6]
[399285456,1766243441217,-346.898603,0.000268,10]
[399285458,1766243441229,-476.83904742,0.00027257,6]
[399285460,1766243441239,-156.54459935,0.00027397,2]
[399285462,1766243441248,-2779.0,0.00027397,120]
[399285464,1766243441258,-5000.0,0.00027397,120]
[399285466,1766243441268,-157.0,0.00027397,5]
[399285468,1766243441277,-500.0,0.000274,120]
[399285470,1766243441287,-1000.0,0.00027467,30]
[399285472,1766243441297,-1000.0,0.00027467,30]
[399285473,1766243441307,-476.83904742,0.00027717,6]
[399285475,1766243441316,-291.66666666,0.00027769,30]
[399285477,1766243441327,-21940.65,0.000278,2]
[399285479,1766243441337,-184.07150305,0.00027803,30]
[399285481,1766243441347,-1372.3,0.00028,2]
[399285483,1766243441356,-300.0,0.00028,120]
[399285485,1766243441366,-476.83904742,0.00028177,6]
[399285487,1766243441375,-197.41928478,0.00028453,7]
[399285489,1766243441384,-158.94634914,0.00028621,7]
[399285491,1766243441394,-3133.93776967,0.0002899,2]
[399285492,1766243441403,-2232.11993864,0.0002899,2]
[399285494,1766243441412,-1041.66666667,0.00029,10]
[399285496,1766243441421,-1041.66666667,0.00029,10]
[399285498,1766243441431,-3000.0,0.00029,120]
[399285500,1766243441440,-3000.0,0.0003,120]
[399285502,1766243441450,-262.26406381,0.0003,30]
[399285504,1766243441459,-400.0,0.0003,120]
[399285506,1766243441468,-501.14851154,0.0003,2]
[399285508,1766243441478,-1000.01,0.0003,30]
[399285510,1766243441488,-1000.01,0.0003006,30]
[399285512,1766243441497,-727.523017,0.00030137,120]
[399285514,1766243441507,-1000.0,0.00030214,30]
[399285516,1766243441517,-1000.0,0.00030214,30]
[399285517,1766243441526,-549.0,0.00030214,30]
[399285519,1766243441536,-1041.66666667,0.00031,120]
[399285521,1766243441545,-1041.66666667,0.00031,30]
[399285523,1766243441554,-159.11,0.00031,7]
[399285525,1766243441566,-21940.65,0.00031,2]
[399285527,1766243441575,-300.0,0.000314,120]
[399285529,1766243441585,-150.0,0.00031827,30]
[399285531,1766243441594,-500.0,0.00032,120]
[399285533,1766243441604,-150.0,0.00032603,30]
[399285535,1766243441613,-3133.93776967,0.0003269,2]
[399285537,1766243441623,-1500.0,0.000327,2]
[399285539,1766243441632,-1500.0,0.000327,2]
[399285541,1766243441642,-1500.0,0.000327,2]
[399285543,1766243441651,-1500.0,0.000327,2]
[399285545,1766243441660,-1500.0,0.000327,2]
[399285547,1766243441669,-1500.0,0.000327,2]
[399285548,1766243441679,-1500.0,0.000327,2]
[399285550,1766243441688,-1500.0,0.000327,2]
[399285552,1766243441697,-1500.0,0.000327,2]
[399285554,1766243441706,-1500.0,0.000327,2]
[399285556,1766243441715,-1500.0,0.000327,2]
[399285558,1766243441724,-561.29,0.000327,2]
[399285560,1766243441734,-6267.87553934,0.00032867,2]
[399285561,1766243441743,-502.15893512,0.00032877,8]
[399285563,1766243441752,-101346.0136008,0.00032877,120]
[399285565,1766243441762,-212.90971002,0.00032877,120]
[399285567,1766243441771,-385.55212409,0.00032877,120]
[399285569,1766243441780,-159.227569,0.00032877,31]
[399285571,1766243441789,-151.0,0.00032877,31]
[399285573,1766243441798,-151.0,0.00032877,31]
[399285575,1766243441807,-151.0,0.00032877,31]
[399285577,1766243441816,-180.078751,0.00032877,31]
[399285579,1766243441825,-1041.66666667,0.00033,120]
[399285581,1766243441834,-300.0,0.00033,120]
[399285583,1766243441844,-348.59,0.000331,10]
[399285585,1766243441853,-500.0,0.00033108,7]
[399285587,1766243441866,-748.14,0.0003315,30]
[399285588,1766243441875,-335.054585,0.00033165,2]
[399285590,1766243441885,-150.0,0.00033379,30]
[399285592,1766243441894,-748.14,0.00033972,31]
[399285594,1766243441905,-500.0,0.00034,120]
[399285596,1766243441914,-150.0,0.00034129,30]
[399285598,1766243441924,-3133.93776967,0.0003429,2]
[399285600,1766243441935,-21940.65,0.000343,2]
[399285602,1766243441945,-500.0,0.00034415,7]
[399285604,1766243441956,-500.0,0.00034461,7]
[399285606,1766243441966,-500.0,0.00034698,7]
[399285608,1766243441975,-748.14,0.00034794,32]
[399285609,1766243441984,-150.0,0.00034905,30]
[399285610,1766243441993,-500.0,0.0003495,7]
[399285611,1766243442002,-440.0,0.00035,120]
[399285612,1766243442011,-10751.46814124,0.00035,2]
[399285613,1766243442021,-300.0,0.00035,120]
[399285614,1766243442030,-150.0,0.00035,69]
[399285615,1766243442039,-727.523017,0.0003516,120]
[399285616,1766243442049,-748.14,0.00035616,33]
[399285617,1766243442058,-3213.26,0.00035616,120]
[399285618,1766243442068,-500.0,0.00035616,7]
[399285619,1766243442077,-500.0,0.00035616,7]
[399285620,1766243442087,-500.0,0.00035616,7]
[399285621,1766243442096,-298.17542837,0.00035616,7]
[399285622,1766243442105,-500.0,0.00035616,7]
[399285623,1766243442115,-500.0,0.00035616,7]
[399285624,1766243442124,-500.0,0.00035616,7]
[399285625,1766243442133,-500.0,0.00035616,7]
[399285626,1766243442144,-368.21625398,0.00035616,7]
[399285627,1766243442155,-153.45,0.00035681,30]
[399285628,1766243442164,-650.48,0.000357,14]
[399285629,1766243442174,-200.0,0.00036,120]
[399285630,1766243442184,-500.0,0.00036065,30]
[399285631,1766243442194,-390.52530395,0.00036336,2]
[399285632,1766243442204,-172.78,0.000364,30]
[399285633,1766243442215,-748.14,0.00036438,34]
[399285634,1766243442225,-179.02,0.00036456,30]
[399285635,1766243442235,-500.0,0.00036519,30]
[399285636,1766243442245,-167.0,0.000369,120]
[399285637,1766243442254,-500.0,0.00036909,30]
[399285638,1766243442264,-300.0,0.00037,120]
[399285639,1766243442274,-519.0,0.0003704,120]
[399285640,1766243442284,-203.19298989,0.00037232,30]
[399285641,1766243442293,-748.14,0.0003726,35]
[399285642,1766243442302,-159.11,0.000376,7]
[399285643,1766243442311,-650.48,0.000378,14]
[399285644,1766243442320,-1002.0,0.00038,120]
[399285645,1766243442330,-200.0,0.00038,120]
[399285646,1766243442340,-166.0,0.00038,30]
[399285647,1766243442350,-3133.93776967,0.00038,3]
[399285648,1766243442359,-6551.46304361,0.0003801,3]
[399285649,1766243442368,-200.0,0.0003802,120]
[399285650,1766243442377,-200.0,0.0003802,120]
[399285651,1766243442387,-748.14,0.00038082,36]
[399285652,1766243442396,-500.0,0.00038513,30]
[399285653,1766243442405,-167.0,0.00038745,120]
[399285654,1766243442415,-748.14,0.00038904,37]
[399285655,1766243442424,-3213.26,0.00038904,120]
[399285656,1766243442434,-300.0,0.00039,120]
[399285657,1766243442444,-151.0,0.00039041,120]
[399285658,1766243442454,-151.0,0.00039041,120]
[399285659,1766243442463,-825740.88494752,0.000393,5]
[399285660,1766243442479,-734.13892641,0.000393,5]
[399285661,1766243442491,-494.37061644,0.000393,5]
[399285662,1766243442509,-29205.07635203,0.000393,5]
[399285667,1766243442886,190.1451937,0.0001293,2]
[399285675,1766243443830,-3e-08,0.00014121,2]
[399285839,1766243463024,501.72942575,0.00013273,2]
[399285840,1766243463337,500.0,0.00013273,2]
[399285841,1766243463873,500.0,0.00013273,2]
[399285851,1766243476516,500.71591428,0.00013273,2]
[399285852,1766243478498,500.0,0.00013273,2]
[399285861,1766243483476,150.0,8.07e-05,2]
[399285862,1766243484402,150.0,8.267e-05,2]
[399285863,1766243484831,150.0,8.464e-05,2]
[399285864,1766243485283,150.0,8.661e-05,2]
[399285865,1766243486014,150.0,8.857e-05,2]
[399285866,1766243486519,168.92,9.054e-05,2]
[399285867,1766243486666,197.08,9.251e-05,2]
[399285868,1766243486950,225.23,9.448e-05,2]
[399285869,1766243487393,253.38,9.645e-05,2]
[399285870,1766243487853,281.54,9.841e-05,2]
[399285872,1766243500720,2412.66,0.00013342,2]
[399285874,1766243528230,500.0,0.00013273,2]
[399285875,1766243533320,363.27468135,0.00013273,2]
[399285876,1766243535167,417.81493699,0.00013273,2]
[399285877,1766243535197,82.18506301,0.00013273,2]
[399285878,1766243537478,501.03663679,0.00013273,2]
[399285883,1766243543073,500.0,0.00013273,2]
[399285892,1766243554895,150.0,8.083e-05,2]
[399285893,1766243555336,150.0,8.28e-05,2]
[399285894,1766243555849,150.0,8.477e-05,2]
[399285895,1766243556797,150.0,8.674e-05,2]
[399285896,1766243557215,172.43,8.871e-05,2]
[399285897,1766243557651,206.92,9.068e-05,2]
[399285898,1766243558062,241.41,9.265e-05,2]
[399285899,1766243558524,275.89,9.462e-05,2]
[399285900,1766243558953,310.38,9.66e-05,2]
[399285901,1766243559380,344.87,9.857e-05,2]
[399285902,1766243595606,500.0,0.00013273,2]
[399285903,1766243598199,500.0,0.00013273,2]
[399285904,1766243598613,500.0,0.00013273,2]
[399285914,1766243608844,1000.0,0.00013342,2]
[399285917,1766243627780,150.0,8.068e-05,2]
[399285918,1766243628207,150.0,8.264e-05,2]
[399285919,1766243629311,150.0,8.461e-05,2]
[399285920,1766243630166,150.0,8.658e-05,2]
[399285921,1766243630259,152.7,8.855e-05,2]
[399285922,1766243631053,183.24,9.051e-05,2]
[399285923,1766243631514,213.78,9.248e-05,2]
[399285924,1766243631941,244.32,9.445e-05,2]
[399285925,1766243632344,274.86,9.642e-05,2]
[399285926,1766243632774,305.4,9.838e-05,2]
[399285927,1766243643975,500.0,0.00013273,2]
[399285928,1766243644037,500.0,0.00013273,2]
[399285929,1766243644371,384.03838464,0.00013273,2]
[399285930,1766243645349,161.55843945,0.00013273,2]
[399285931,1766243647196,744.99147611,0.00013342,2]
[399285932,1766243647225,4255.00852389,0.00013342,2]
[399285933,1766243648795,300.0,0.00014277,120]
[399285934,1766243650509,190.67,0.00014277,120]
[399285935,1766243671850,5000.0,0.00013342,2]
[399285936,1766243695553,745.00147611,0.00013342,2]
[399285937,1766243695581,4254.99852389,0.00013342,2]
[399285938,1766243700601,150.0,8.074e-05,2]
[399285939,1766243700954,150.0,8.271e-05,2]
[399285940,1766243701387,150.0,8.468e-05,2]
[399285941,1766243702373,176.56,8.664e-05,2]
[399285942,1766243702815,220.69,8.861e-05,2]
[399285943,1766243703269,264.83,9.058e-05,2]
[399285944,1766243703680,308.97,9.255e-05,2]
[399285945,1766243703883,219.10013382,0.00013273,2]
[399285946,1766243704123,353.11,9.452e-05,2]
[399285947,1766243704541,397.25,9.649e-05,2]
[399285948,1766243705015,441.39,9.846e-05,2]
[399285949,1766243719626,1762.00085506,0.00013342,2]
[399285950,1766243736604,1151.11048723,0.00013342,2]
[399285951,1766243736632,1149.28422426,0.00013342,2]
[399285952,1766243744678,1735.35297212,0.00013342,2]
[399285953,1766243763361,500.0,0.00013273,2]
[399285954,1766243768450,2199.31807662,0.00013342,2]
[399285955,1766243768785,500.0,0.00013273,2]
[399285956,1766243773555,150.0,8.069e-05,2]
[399285957,1766243774457,150.0,8.266e-05,2]
[399285958,1766243774882,202.89,8.463e-05,2]
[399285959,1766243775325,270.52,8.66e-05,2]
[399285960,1766243775946,338.15,8.857e-05,2]
[399285961,1766243776382,405.79,9.053e-05,2]
[399285962,1766243776810,473.42,9.25e-05,2]
[399285963,1766243777247,541.05,9.447e-05,2]
[399285964,1766243778138,608.68,9.644e-05,2]
[399285965,1766243778575,676.31,9.841e-05,2]
[399285966,1766243792765,99.244727,0.00013342,2]
[399285967,1766243792795,4174.68510169,0.00013342,2]
[399285968,1766243808164,-500.0,0.00013382,2]